[Event "TUR-ch Veterans 2019"]
[Site "Belek"]
[Date "2019.01.26"]
[Round "7.17"]
[White "Buyukgokcesu, Tahir Sami"]
[Black "Altin, Halis"]
[Result "1-0"]
[ECO "C44"]
[WhiteElo "1557"]
[BlackElo "1642"]
[Annotator "NA"]
[PlyCount "94"]
[EventDate "2019.01.20"]
[EventType "swiss"]
[EventCountry "TUR"]
[SourceTitle "playchess.com"]
[Source "ChessBase"]
[SourceQuality "1"]
[TimeControl "5400+30"]

1. Nf3 {[%emt 0:00:30]} Nc6 {[%emt 0:01:30]} 2. d3 {[%emt 0:00:30]} e5 {[%emt 0:00:30]} 3. e4 {[%emt 0:00:30]} Nf6 {[%emt 0:00:30]} 4. Be2 {[%emt 0:00:30]} d5 {[%emt 0:01:30]} 5. Nbd2 {[%emt 0:00:30]} Bc5 {[%emt 0:01:30]} 6. O-O {[%emt 0:00:30]} O-O {[%emt 0:00:30]} 7. c3 {[%emt 0:00:30]} dxe4 {[%emt 0:00:30]} 8. dxe4 {[%emt 0:00:00]} Qe7 {[%emt 0:02:30]} 9. Qc2 {[%emt 0:00:00]} Bg4 {[%emt 0:03:30]} 10. a4 {[%emt 0:01:30]} a5 {[%emt 0:03:30]} 11. Nc4 {[%emt 0:00:30]} Rfd8 {[%emt 0:03:30]} 12. Be3 {[%emt 0:02:30]} Bxe3 {[%emt 0:03:30]} 13. Nxe3 {[%emt 0:00:30]} Rd7 {[%emt 0:03:30]} 14. Nxg4 {[%emt 0:01:30]} Nxg4 {[%emt 0:00:00]} 15. Rad1 {[%emt 0:01:30]} Rad8 {[%emt 0:01:00]} 16. Qb3 {[%emt 0:03:30]} Rxd1 {[%emt 0:03:30]} 17. Rxd1 {[%emt 0:00:00]} Rxd1+ {[%emt 0:00:30]} 18. Bxd1 {[%emt 0:02:00]} Qc5 {[%emt 0:02:30]} 19. Qc2 {[%emt 0:00:30]} Nd8 {[%emt 0:07:30]} 20. Qd2 {[%emt 0:04:30]} Ne6 {[%emt 0:01:30]} 21. Bc2 {[%emt 0:00:30]} h6 {[%emt 0:02:30]} 22. g3 {[%emt 0:06:30]} Qd6 {[%emt 0:08:30]} 23. Qd5 {[%emt 0:07:30]} Qb6 {[%emt 0:01:30]} 24. Qd2 {[%emt 0:04:30]} Qxb2 {[%emt 0:07:30]} 25. h3 {[%emt 0:00:30]} Nf6 {[%emt 0:00:30]} 26. Nxe5 {[%emt 0:00:30]} Qb6 {[%emt 0:07:30]} 27. Kg2 {[%emt 0:05:30]} Kf8 {[%emt 0:05:30]} 28. f3 {[%emt 0:01:30]} Ke7 {[%emt 0:00:30]} 29. Nc4 {[%emt 0:07:30]} Qc5 {[%emt 0:00:30]} 30. Ne3 {[%emt 0:00:30]} g6 {[%emt 0:04:30]} 31. Nd5+ {[%emt 0:04:30]} Nxd5 {[%emt 0:00:30]} 32. exd5 {[%emt 0:00:30]} Qd6 {[%emt 0:01:30]} 33. c4 {[%emt 0:01:30]} b6 {[%emt 0:05:08]} 34. Qe2 {[%emt 0:00:30]} g5 {[%emt 0:01:13]} 35. dxe6 {[%emt 0:01:30]} fxe6 {[%emt 0:00:02]} 36. Qd3 {[%emt 0:00:30]} Qxd3 {[%emt 0:00:40]} 37. Bxd3 {[%emt 0:00:30]} Kd6 {[%emt 0:00:08]} 38. Kf2 {[%emt 0:04:30]} Kc5 {[%emt 0:00:24]} 39. Ke3 {[%emt 0:01:30]} Kb4 {[%emt 0:00:38]} 40. Kd2 {[%emt 0:00:30]} Kxa4 {[%emt 0:00:30]} 41. Kc3 {[%emt 0:00:00]} c6 {[%emt 0:00:50]} 42. f4 {[%emt 0:00:00]} gxf4 {[%emt 0:00:30]} 43. gxf4 {[%emt 0:00:30]} b5 {[%emt 0:00:00]} 44. Be4 {[%emt 0:01:30]} b4+ {[%emt 0:00:31]} 45. Kb2 {[%emt 0:00:00]} b3 {[%emt 0:04:14]} 46. Bxc6+ {[%emt 0:01:00]} Kb4 {[%emt 0:00:30]} 47. Be4 {[%emt 0:00:30]} Ka4 {[%emt 0:00:30]} 1-0

[Event "TUR-ch Veterans 2019"]
[Site "Belek"]
[Date "2019.01.26"]
[Round "7.18"]
[White "Ersoz, Celalettin"]
[Black "Alkan, Sukru"]
[Result "1/2-1/2"]
[ECO "D46"]
[WhiteElo "1261"]
[BlackElo "1484"]
[Annotator "NA"]
[PlyCount "68"]
[EventDate "2019.01.20"]
[EventType "swiss"]
[EventCountry "TUR"]
[SourceTitle "playchess.com"]
[Source "ChessBase"]
[SourceQuality "1"]
[TimeControl "5400+30"]

1. d4 {[%emt 0:00:30]} d5 {[%emt 0:00:30]} 2. Nf3 {[%emt 0:00:00]} Nf6 {[%emt 0:00:00]} 3. c4 {[%emt 0:00:00]} c6 {[%emt 0:00:00]} 4. Nc3 {[%emt 0:05:30]} e6 {[%emt 0:00:30]} 5. e3 {[%emt 0:00:30]} Bd6 {[%emt 0:00:00]} 6. Bd3 {[%emt 0:02:30]} Nbd7 {[%emt 0:00:00]} 7. O-O {[%emt 0:00:30]} O-O {[%emt 0:01:30]} 8. e4 {[%emt 0:03:30]} dxe4 {[%emt 0:00:30]} 9. Nxe4 {[%emt 0:00:00]} Nxe4 {[%emt 0:00:00]} 10. Bxe4 {[%emt 0:00:00]} h6 {[%emt 0:01:00]} 11. b3 {[%emt 0:04:30]} e5 {[%emt 0:01:30]} 12. dxe5 {[%emt 0:02:30]} Nxe5 {[%emt 0:00:30]} 13. Nxe5 {[%emt 0:00:30]} Bxe5 {[%emt 0:00:00]} 14. Rb1 {[%emt 0:04:30]} Qh4 {[%emt 0:00:00]} 15. f4 {[%emt 0:01:30]} Bc7 {[%emt 0:06:30]} 16. Qc2 {[%emt 0:04:30]} Re8 {[%emt 0:04:30]} 17. g3 {[%emt 0:03:30]} Qe7 {[%emt 0:02:30]} 18. Bf3 {[%emt 0:07:30]} Qc5+ {[%emt 0:01:30]} 19. Qf2 {[%emt 0:00:30]} Qxf2+ {[%emt 0:00:30]} 20. Kxf2 {[%emt 0:00:30]} Bh3 {[%emt 0:00:30]} 21. Re1 {[%emt 0:02:30]} Rxe1 {[%emt 0:04:30]} 22. Kxe1 {[%emt 0:00:00]} Bf5 {[%emt 0:00:30]} 23. Rb2 {[%emt 0:02:00]} Bb6 {[%emt 0:03:30]} 24. Kf1 {[%emt 0:08:30]} Bd4 {[%emt 0:01:30]} 25. Rd2 {[%emt 0:00:30]} Bc3 {[%emt 0:01:30]} 26. Rd1 {[%emt 0:02:30]} Bh3+ {[%emt 0:00:30]} 27. Kg1 {[%emt 0:00:30]} Re8 {[%emt 0:00:30]} 28. Ba3 {[%emt 0:02:30]} Re6 {[%emt 0:07:30]} 29. Bc5 {[%emt 0:01:30]} b6 {[%emt 0:00:00]} 30. Bf2 {[%emt 0:01:30]} Bb4 {[%emt 0:01:00]} 31. Rd8+ {[%emt 0:00:30]} Kh7 {[%emt 0:00:30]} 32. Ra8 {[%emt 0:02:30]} Re7 {[%emt 0:00:30]} 33. Bxc6 {[%emt 0:02:30]} a5 {[%emt 0:02:30]} 34. Bd5 {[%emt 0:05:30]} Re2 {[%emt 0:01:30]} 1/2-1/2

[Event "TUR-ch Veterans 2019"]
[Site "Belek"]
[Date "2019.01.26"]
[Round "7.19"]
[White "Bagci, Hikmet"]
[Black "Suzan, Mehmet"]
[Result "1-0"]
[ECO "B90"]
[WhiteElo "1548"]
[BlackElo "1501"]
[Annotator "NA"]
[PlyCount "105"]
[EventDate "2019.01.20"]
[EventType "swiss"]
[EventCountry "TUR"]
[SourceTitle "playchess.com"]
[Source "ChessBase"]
[SourceQuality "1"]
[TimeControl "5400+30"]

1. e4 {[%emt 0:00:30]} c5 {[%emt 0:00:30]} 2. Nf3 {[%emt 0:00:30]} d6 {[%emt 0:00:00]} 3. d4 {[%emt 0:00:00]} cxd4 {[%emt 0:00:00]} 4. Nxd4 {[%emt 0:00:00]} Nf6 {[%emt 0:00:30]} 5. Nc3 {[%emt 0:00:00]} a6 {[%emt 0:00:30]} 6. Be3 {[%emt 0:00:00]} e5 {[%emt 0:00:30]} 7. Nb3 {[%emt 0:00:00]} Be6 {[%emt 0:00:30]} 8. f3 {[%emt 0:00:00]} Be7 {[%emt 0:00:30]} 9. Qd2 {[%emt 0:00:00]} O-O {[%emt 0:00:30]} 10. g4 {[%emt 0:01:00]} b5 {[%emt 0:00:00]} 11. O-O-O {[%emt 0:00:30]} Nbd7 {[%emt 0:01:00]} 12. g5 {[%emt 0:00:30]} Nh5 {[%emt 0:00:30]} 13. Rg1 {[%emt 0:00:30]} Nb6 {[%emt 0:01:30]} 14. Kb1 {[%emt 0:02:30]} b4 {[%emt 0:00:30]} 15. Nd5 {[%emt 0:00:30]} Nxd5 {[%emt 0:01:30]} 16. exd5 {[%emt 0:00:30]} Bf5 {[%emt 0:00:30]} 17. Qxb4 {[%emt 0:00:30]} Qc7 {[%emt 0:00:30]} 18. Bd3 {[%emt 0:00:30]} Rfb8 {[%emt 0:01:30]} 19. Qa3 {[%emt 0:04:30]} Bxd3 {[%emt 0:01:30]} 20. Rxd3 {[%emt 0:00:30]} a5 {[%emt 0:01:30]} 21. Rg4 {[%emt 0:00:30]} Nf4 {[%emt 0:05:30]} 22. Bxf4 {[%emt 0:00:30]} exf4 {[%emt 0:02:30]} 23. h4 {[%emt 0:00:30]} Rc8 {[%emt 0:04:30]} 24. Nd4 {[%emt 0:03:30]} f6 {[%emt 0:02:30]} 25. Nc6 {[%emt 0:00:30]} Re8 {[%emt 0:00:30]} 26. Qc3 {[%emt 0:00:30]} fxg5 {[%emt 0:01:30]} 27. hxg5 {[%emt 0:01:30]} Rf8 {[%emt 0:00:30]} 28. Rd1 {[%emt 0:02:30]} Rf5 {[%emt 0:00:30]} 29. Qe1 {[%emt 0:01:30]} Bxg5 {[%emt 0:01:30]} 30. Qe6+ {[%emt 0:03:30]} Qf7 {[%emt 0:01:30]} 31. Qxd6 {[%emt 0:00:30]} h5 {[%emt 0:01:30]} 32. Rg2 {[%emt 0:02:30]} Bf6 {[%emt 0:00:30]} 33. Re2 {[%emt 0:02:30]} h4 {[%emt 0:03:30]} 34. Ne7+ {[%emt 0:01:30]} Bxe7 {[%emt 0:01:30]} 35. Rxe7 {[%emt 0:00:00]} Qf6 {[%emt 0:00:30]} 36. Qd7 {[%emt 0:03:00]} Rb8 {[%emt 0:03:30]} 37. Re8+ {[%emt 0:00:30]} Rxe8 {[%emt 0:01:30]} 38. Qxe8+ {[%emt 0:00:00]} Qf8 {[%emt 0:00:30]} 39. Qe6+ {[%emt 0:01:00]} Qf7 {[%emt 0:00:30]} 40. Qc8+ {[%emt 0:00:30]} Qf8 {[%emt 0:00:30]} 41. Qc7 {[%emt 0:02:30]} h3 {[%emt 0:06:30]} 42. d6 {[%emt 0:00:00]} h2 {[%emt 0:00:30]} 43. d7 {[%emt 0:00:00]} h1=Q {[%emt 0:04:30]} 44. Qc4+ {[%emt 0:00:00]} Rf7 {[%emt 0:00:30]} 45. Rxh1 {[%emt 0:00:00]} Qd8 {[%emt 0:00:30]} 46. Rd1 {[%emt 0:00:30]} g6 {[%emt 0:00:30]} 47. Qe6 {[%emt 0:02:30]} Kg7 {[%emt 0:01:30]} 48. Rd6 {[%emt 0:00:00]} Kf8 {[%emt 0:02:30]} 49. Qxg6 {[%emt 0:03:00]} Rg7 {[%emt 0:07:30]} 50. Qf5+ {[%emt 0:00:30]} Kg8 {[%emt 0:00:30]} 51. Qe6+ {[%emt 0:00:30]} Kh7 {[%emt 0:01:30]} 52. Rd1 {[%emt 0:01:30]} Re7 {[%emt 0:00:30]} 53. Qxe7+ {[%emt 0:01:30]} 1-0

[Event "TUR-ch Veterans 2019"]
[Site "Belek"]
[Date "2019.01.26"]
[Round "7.20"]
[White "Saglam, Sami"]
[Black "Cifci, Alaettin"]
[Result "0-1"]
[ECO "B46"]
[WhiteElo "1424"]
[BlackElo "1294"]
[Annotator "NA"]
[PlyCount "52"]
[EventDate "2019.01.20"]
[EventType "swiss"]
[EventCountry "TUR"]
[SourceTitle "playchess.com"]
[Source "ChessBase"]
[SourceQuality "1"]
[TimeControl "5400+30"]

1. e4 {[%emt 0:00:30]} c5 {[%emt 0:00:30]} 2. Nf3 {[%emt 0:00:00]} Nc6 {[%emt 0:00:30]} 3. Nc3 {[%emt 0:02:00]} a6 {[%emt 0:00:30]} 4. d4 {[%emt 0:01:30]} cxd4 {[%emt 0:01:30]} 5. Nxd4 {[%emt 0:00:30]} e6 {[%emt 0:00:00]} 6. Be3 {[%emt 0:00:30]} Bb4 {[%emt 0:00:00]} 7. Nxc6 {[%emt 0:04:30]} Bxc3+ {[%emt 0:01:30]} 8. bxc3 {[%emt 0:01:30]} bxc6 {[%emt 0:00:30]} 9. Qd4 {[%emt 0:02:30]} Nf6 {[%emt 0:01:30]} 10. Bg5 {[%emt 0:01:30]} h6 {[%emt 0:01:30]} 11. Bh4 {[%emt 0:00:30]} g5 {[%emt 0:05:30]} 12. Bg3 {[%emt 0:01:30]} O-O {[%emt 0:00:30]} 13. e5 {[%emt 0:06:30]} Nd5 {[%emt 0:01:30]} 14. h4 {[%emt 0:05:30]} Kg7 {[%emt 0:02:30]} 15. c4 {[%emt 0:05:30]} Qa5+ {[%emt 0:00:00]} 16. Ke2 {[%emt 0:04:30]} Qc3 {[%emt 0:04:00]} 17. Qd3 {[%emt 0:07:30]} Kh8 {[%emt 0:03:30]} 18. Rb1 {[%emt 0:01:30]} Qxd3+ {[%emt 0:01:30]} 19. Kxd3 {[%emt 0:01:30]} Ne7 {[%emt 0:02:30]} 20. c3 {[%emt 0:03:30]} a5 {[%emt 0:00:30]} 21. Be2 {[%emt 0:00:30]} Ba6 {[%emt 0:00:30]} 22. Ke4 {[%emt 0:00:30]} Kg7 {[%emt 0:00:30]} 23. Rb6 {[%emt 0:00:30]} Nd5 {[%emt 0:00:30]} 24. cxd5 {[%emt 0:00:30]} Bxe2 {[%emt 0:00:30]} 25. dxc6 {[%emt 0:03:30]} dxc6 {[%emt 0:00:30]} 26. Rxc6 {[%emt 0:00:30]} Bf1 {[%emt 0:00:30]} 0-1